[Event "3rd Sunway Formentera-A 2024"]
[Site "Formentera"]
[Date "2024.04.11"]
[Round "3.2"]
[White "Moussard, Jules"]
[Black "Xiao, Tong(Qd)"]
[Result "1/2-1/2"]
[ECO "B52"]
[WhiteElo "2610"]
[BlackElo "2484"]
[Annotator "TA"]
[PlyCount "71"]
[EventDate "2024.04.03"]
[EventType "swiss"]
[EventCountry "ESP"]
[SourceTitle "playchess.com"]
[Source "ChessBase"]
[SourceQuality "1"]
[TimeControl "40/5400+30:1800+30"]

{[%evp 9,71,17,20,17,18,8,17,0,16,30,35,15,40,44,47,35,42,43,44,40,45,42,52,53,54,42,56,60,52,55,54,60,62,14,28,26,31,0,26,26,36,0,22,15,23,8,10,12,18,4,7,0,26,19,14,20,33,26,23,18,14,4,6,4]} 1. e4 {[%emt 0:04:35]} c5 {[%emt 0:00:11]} 2. Nf3 {[%emt 0:00:05]} d6 {[%emt 0:00:05]} 3. Bb5+ {[%emt 0:00:05]} Bd7 {[%emt 0:00:33]} 4. c4 {[%emt 0:00:05]} Nc6 {[%emt 0:01:28]} 5. Nc3 {[%emt 0:00:14]} Nf6 {[%emt 0:01:06]} 6. O-O {[%emt 0:01:05]} g6 {[%emt 0:05:15]} 7. Bxc6 {[%emt 0:01:07]} Bxc6 {[%emt 0:01:04]} 8. d4 {[%emt 0:00:14]} cxd4 {[%emt 0:00:11]} 9. Nxd4 {[%emt 0:04:06]} Bg7 {[%emt 0:00:43]} 10. Qd3 {[%emt 0:05:03]} O-O {[%emt 0:01:28]} 11. Rd1 {[%emt 0:04:30]} Nd7 {[%emt 0:07:34]} 12. Be3 {[%emt 0:02:43]} Rc8 {[%emt 0:05:44]} 13. f3 {[%emt 0:02:30]} Nc5 {[%emt 0:02:30]} 14. Qe2 {[%emt 0:01:59]} Bd7 {[%emt 0:12:09]} 15. Rac1 {[%emt 0:03:15]} Na4 {[%emt 0:03:46]} 16. Nb1 {[%emt 0:09:08]} Nc5 {[%emt 0:04:56]} 17. b3 {[%emt 0:03:23]} Ne6 {[%emt 0:03:34]} 18. Nxe6 {[%emt 0:05:52]} Bxe6 {[%emt 0:00:10]} 19. Nc3 {[%emt 0:07:34]} ({Of course not} 19. Bxa7 b6 20. Qf2 Rc5 $15) 19... Qa5 {[%emt 0:06:54]} 20. Nd5 {[%emt 0:07:06]} Bxd5 {[%emt 0:02:14]} 21. exd5 {[%emt 0:01:40]} (21. Rxd5 $14 {is superior.} Qa3 22. Qd2) 21... Rfe8 {[%emt 0:02:08]} 22. a4 {[%emt 0:06:41]} a6 {[%emt 0:01:52]} 23. Qd3 {[%emt 0:00:35]} Qb4 {[%emt 0:03:29]} 24. Bd2 {[%emt 0:01:51]} Qb6+ {[%emt 0:04:19]} 25. Be3 {[%emt 0:00:19]} Qb4 {[%emt 0:00:05]} 26. Kf1 {[%emt 0:00:17]} e6 {[%emt 0:01:37]} 27. dxe6 {[%emt 0:00:57]} Rxe6 {[%emt 0:02:16]} 28. Re1 {[%emt 0:01:07]} Rce8 {[%emt 0:01:14][%cal Og7h6] [#] ...Bh6! is the strong threat.} 29. Bf2 {[%emt 0:01:21]} Qa3 {[%emt 0:02:31]} 30. Qc2 {[%emt 0:07:21]} h5 {[%emt 0:03:09]} 31. Rxe6 {[%emt 0:01:16]} Rxe6 {[%emt 0:01:45]} 32. Rd1 {[%emt 0:00:08]} Qb2 {[%emt 0:05:38]} 33. Qxb2 {[%emt 0:00:51]} Bxb2 {[%emt 0:00:01]} 34. b4 {[%emt 0:00:25][%cal Bb3b4,Bb4b5][%mdl 32]} Bc3 {[%emt 0:01:09]} 35. b5 {[%emt 0:04:49]} Bb4 {[%emt 0:00:49]} 36. Rd5 {[%emt 0:05:08] Weighted Error Value: White=0.08 (flawless) /Black=0.06 (flawless) .  Mistake:       	White=1     	---        Inaccurate:     	White=1     	Black=2      OK:         	White=9     	Black=10} 1/2-1/2

[Event "3rd Sunway Formentera-A 2024"]
[Site "Formentera"]
[Date "2024.04.11"]
[Round "3.3"]
[White "Alsina Leal, Daniel"]
[Black "Pranav, V."]
[Result "0-1"]
[ECO "C70"]
[WhiteElo "2497"]
[BlackElo "2604"]
[Annotator "TA"]
[PlyCount "110"]
[EventDate "2024.04.03"]
[EventType "swiss"]
[EventCountry "ESP"]
[SourceTitle "playchess.com"]
[Source "ChessBase"]
[SourceQuality "1"]
[TimeControl "40/5400+30:1800+30"]

{[%evp 31,110,62,63,64,63,57,66,43,45,35,62,0,0,0,0,0,0,0,0,0,0,0,0,0,0,-21,-14,-75,-78,-74,0,-54,-17,-9,-16,-210,-200,-306,-302,-320,-314,-302,-322,-311,-308,-382,-379,-504,-499,-583,-543,-709,-468,-482,-482,-488,-476,-483,-475,-471,-492,-472,-475,-805,-738,-772,-686,-605,-594,-872,-772,-29966,-12795,-29993,-29994,-29994,-29995,-29995,-29996,-29996,-29997]} 1. e4 {[%emt 0:05:39]} e5 {[%emt 0:00:13]} 2. Nf3 {[%emt 0:00:14]} Nc6 {[%emt 0:00:08]} 3. Bb5 {[%emt 0:00:11]} a6 {[%emt 0:00:16]} 4. Ba4 {[%emt 0:00:07]} Bc5 {[%emt 0:00:23]} 5. c3 {[%emt 0:03:28]} Nge7 {[%emt 0:00:13]} 6. d4 {[%emt 0:01:26] C70: Ruy Lopez: 3...a6 4 Ba4, Norwegian and Delayed Schliemann.} exd4 {[%emt 0:00:10]} 7. cxd4 {[%emt 0:00:08]} Bb4+ {[%emt 0:00:09]} 8. Bd2 {[%emt 0:01:36]} Bxd2+ {[%emt 0:00:11]} 9. Qxd2 {[%emt 0:00:16]} d5 {[%emt 0:00:25]} 10. exd5 {[%emt 0:00:48]} Nxd5 {[%emt 0:00:46]} 11. Bxc6+ {[%emt 0:12:33]} bxc6 {[%emt 0:00:10]} 12. O-O {[%emt 0:00:44]} O-O {[%emt 0:01:05]} 13. Nc3 {[%emt 0:01:22]} Ne7 $1 $146 {[%emt 0:02:41][%mdl 8] A relevant novelty.} ({Predecessor:} 13... Nf6 14. Ne5 Qd6 15. Rad1 Be6 16. b3 Rfd8 17. Na4 Bd5 18. Nc5 Ne4 19. Nxe4 Bxe4 {1-0 Ter Sahakyan,S (2649)-Le,T (2567) Chessable Masters Play In rapid 2024 (6)}) 14. Rfe1 {[%emt 0:03:42]} h6 {[%emt 0:13:52]} 15. h3 {[%emt 0:03:39]} Be6 {[%emt 0:02:39]} 16. b3 {[%emt 0:08:20]} Re8 {[%emt 0:06:04]} 17. Rac1 {[%emt 0:05:41]} a5 {[%emt 0:05:48]} 18. Re5 {[%emt 0:12:29]} Qd7 {[%emt 0:24:53]} 19. Rce1 {[%emt 0:03:19]} Ng6 {[%emt 0:03:49]} 20. R5e4 {[%emt 0:03:42]} Red8 {[%emt 0:01:26]} 21. Ne5 {[%emt 0:10:46]} (21. Qc1 $14) 21... Nxe5 $11 {[%emt 0:03:57]} 22. Rxe5 {[%emt 0:00:06]} Qxd4 {[%emt 0:06:19]} 23. Qxd4 {[%emt 0:00:11]} Rxd4 {[%emt 0:00:05]} 24. Rc5 {[%emt 0:00:24]} Bd7 {[%emt 0:01:48]} 25. Ree5 {[%emt 0:02:47]} Rd3 {[%emt 0:00:13]} 26. Kf1 {[%emt 0:04:04]} f6 {[%emt 0:00:34]} 27. Re4 {[%emt 0:01:30]} Rd2 {[%emt 0:05:17]} 28. Ra4 {[%emt 0:03:10]} Re8 {[%emt 0:00:11]} 29. Raxa5 {[%emt 0:01:41]} (29. Rcxa5 $11 Rc2 30. Nd1) 29... Ree2 $1 $17 {[%emt 0:00:46]} 30. Nd1 {[%emt 0:04:36]} (30. Nxe2 $2 Rd1#) 30... Be8 {[%emt 0:02:35]} (30... Rxd1+ $2 31. Kxe2 Rg1 32. g4 $18) ({Better is} 30... Rxa2 $1 $17 31. b4 Kf7) 31. Ra8 {[%emt 0:02:49]} (31. a4 $11) 31... Kh7 {[%emt 0:01:48]} (31... Rxd1+ $2 32. Kxe2 Rg1 33. Rxe8+ $18) 32. a4 {[%emt 0:04:24]} Bf7 {[%emt 0:03:37]} (32... Rxd1+ $2 33. Kxe2 $18) 33. Rd8 $2 {[%emt 0:00:28]} (33. Rc3 $11 {and White has nothing to worry.}) 33... Bd5 $19 {[%emt 0:00:22]} (33... Bxb3 34. Rxd2 Rxd2 35. Nc3) (33... Rxd8 34. Kxe2 Bxb3 35. Nc3 $11) 34. Rb8 {[%emt 0:00:38] [#]} (34. g4 $142) 34... Be4 $1 $19 {[%emt 0:00:19]} (34... Rxd1+ $2 35. Kxe2 Ra1 36. g3 $18) 35. Rc3 {[%emt 0:00:31] [#]} Bc2 $1 {[%emt 0:00:54]} (35... Rxd1+ 36. Kxe2 Ra1 37. f3 $18) ({Don't go for} 35... Bd3 $2 36. Rxd3 Ra2 37. Rd7 $18) 36. Ne3 {[%emt 0:00:28]} Rxf2+ {[%emt 0:00:05]} 37. Kg1 {[%emt 0:00:02]} Be4 {[%emt 0:00:14]} 38. a5 {[%emt 0:00:59]} f5 {[%emt 0:01:32]} ({Don't take} 38... Bxg2 39. Rd8 Ra2 (39... Rxd8 $2 40. Kxf2 Be4 41. Rc4 $19) 40. Rd1 $19) 39. Re8 {[%emt 0:00:28]} Rfe2 {[%emt 0:00:47]} 40. a6 {[%emt 0:00:00]} Ra2 {[%emt 0:00:00]} 41. Re7 {[%emt 0:10:37]} Rxa6 {[%emt 0:03:46]} 42. Kh2 {[%emt 0:01:02]} Kg6 {[%emt 0:01:30]} 43. Kg3 {[%emt 0:02:48]} Kf6 {[%emt 0:00:55]} 44. Rxe4 {[%emt 0:01:02]} fxe4 {[%emt 0:00:11]} 45. Kf4 {[%emt 0:00:07]} Rb6 {[%emt 0:00:47]} 46. Kxe4 {[%emt 0:01:19]} Rb2 {[%emt 0:00:06]} 47. Rd3 {[%emt 0:01:49]} (47. Nc2 $142) 47... R2xb3 {[%emt 0:00:40]} 48. Rd7 {[%emt 0:00:10]} R6b5 {[%emt 0:00:25]} 49. Kd4 {[%emt 0:02:24]} R5b4+ {[%emt 0:05:00]} 50. Kc5 {[%emt 0:00:19]} Re4 {[%emt 0:00:35]} 51. Ng4+ {[%emt 0:00:48]} Ke6 {[%emt 0:00:05]} 52. Rxc7 {[%emt 0:00:49]} Rc3+ {[%emt 0:00:04]} 53. Kb6 {[%emt 0:00:17]} Rb4+ {[%emt 0:00:04]} 54. Ka5 {[%emt 0:00:04]} Rb8 {[%emt 0:00:05]} 55. Ka4 {[%emt 0:00:43]} Rc1 {[%emt 0:00:02]} 0-1

[Event "3rd Sunway Formentera-A 2024"]
[Site "Formentera"]
[Date "2024.04.11"]
[Round "3.4"]
[White "Fernandez Guillen, Ernesto J."]
[Black "Baklan, Vladimir"]
[Result "1/2-1/2"]
[ECO "B33"]
[WhiteElo "2474"]
[BlackElo "2531"]
[Annotator "TA"]
[PlyCount "166"]
[EventDate "2024.04.03"]
[EventType "swiss"]
[EventCountry "ESP"]
[SourceTitle "playchess.com"]
[Source "ChessBase"]
[SourceQuality "1"]
[TimeControl "40/5400+30:1800+30"]

{[%evp 104,166,0,0,0,0,0,0,0,0,0,0,0,0,0,0,0,0,0,0,0,0,0,0,0,0,0,0,0,0,0,0,0,0,0,0,0,0,0,0,0,0,0,0,0,0,0,0,0,0,0,-8,-8,-8,-8,-8,-8,-8,-8,-8,-8,-8,-8,-8,-8]} 1. e4 {[%emt 0:09:14]} c5 {[%emt 0:00:03]} 2. Nf3 {[%emt 0:00:09]} Nc6 {[%emt 0:00:04]} 3. Nc3 {[%emt 0:00:20]} Nf6 {[%emt 0:00:06]} 4. d4 {[%emt 0:00:16]} cxd4 {[%emt 0:00:06]} 5. Nxd4 {[%emt 0:00:05]} e5 {[%emt 0:00:02]} 6. Ndb5 {[%emt 0:00:34]} d6 {[%emt 0:00:04]} 7. Bg5 {[%emt 0:00:07]} a6 {[%emt 0:00:04]} 8. Na3 {[%emt 0:00:04]} b5 {[%emt 0:00:15]} 9. Nd5 {[%emt 0:00:09]} Be7 {[%emt 0:00:06]} 10. Bxf6 {[%emt 0:00:44]} Bxf6 {[%emt 0:00:04]} 11. c4 {[%emt 0:00:13]} b4 {[%emt 0:00:07]} 12. Nc2 {[%emt 0:00:06]} a5 {[%emt 0:00:06]} 13. g3 {[%emt 0:02:48] B33: Sicilian: Pelikan and Sveshnikov Variations.} g6 {[%emt 0:00:31]} 14. h4 {[%emt 0:03:47]} Bg7 {[%emt 0:08:08]} 15. Bh3 {[%emt 0:12:34]} Bb7 {[%emt 0:00:20]} 16. Qd3 {[%emt 0:01:45]} O-O {[%emt 0:05:09]} 17. O-O $146 {[%emt 0:02:15]} ({Predecessor:} 17. a3 bxa3 18. Rxa3 Nb8 19. O-O Na6 20. Nce3 Nc5 21. Qc2 Bh6 22. Ng4 Bg7 23. Nge3 {0-1 Bartel,M (2302)-Bednarek,S (2320) POL-chT Warsaw 2012 (7.2)}) 17... Rb8 {[%emt 0:23:24]} 18. Rfd1 {[%emt 0:07:29]} Ba8 {[%emt 0:07:33]} 19. b3 {[%emt 0:10:32]} Re8 {[%emt 0:07:00]} 20. Bg2 {[%emt 0:09:48]} Nd4 {[%emt 0:15:14]} 21. Nxd4 {[%emt 0:02:50]} exd4 {[%emt 0:00:04]} 22. Nf4 {[%emt 0:00:39]} Rb7 {[%emt 0:01:22]} 23. a3 {[%emt 0:03:58]} Qb8 {[%emt 0:11:00]} 24. Rdb1 {[%emt 0:08:27]} Rbe7 {[%emt 0:00:53]} 25. axb4 {[%emt 0:00:15]} Qxb4 {[%emt 0:00:37]} 26. Qd1 {[%emt 0:05:49]} Bc6 {[%emt 0:11:22]} 27. Nd3 {[%emt 0:00:46]} Qb6 {[%emt 0:00:04]} 28. Qd2 {[%emt 0:02:34]} Ra7 {[%emt 0:00:05]} 29. Ra3 {[%emt 0:01:55]} h5 {[%emt 0:00:27]} 30. Rba1 {[%emt 0:06:14]} Rb7 {[%emt 0:04:02]} 31. b4 {[%emt 0:02:57]} axb4 {[%emt 0:00:37]} 32. Ra6 {[%emt 0:00:17]} Qc7 {[%emt 0:00:05]} 33. Rxc6 {[%emt 0:01:06]} Qxc6 {[%emt 0:00:10]} 34. e5 {[%emt 0:00:12]} d5 {[%emt 0:01:02]} 35. Bxd5 {[%emt 0:01:13]} Qc7 {[%emt 0:00:11]} 36. Bxb7 {[%emt 0:02:38]} Qxb7 {[%emt 0:00:03]} 37. Qf4 {[%emt 0:02:05]} Rd8 {[%emt 0:03:20]} 38. e6 {[%emt 0:01:11]} fxe6 {[%emt 0:02:31]} 39. Qg5 {[%emt 0:00:18]} Rb8 {[%emt 0:00:35]} 40. Qxg6 {[%emt 0:00:00]} Qf7 {[%emt 0:00:00]} 41. Qe4 {[%emt 0:02:36]} b3 {[%emt 0:02:17]} 42. Ra8 {[%emt 0:12:43]} Rxa8 {[%emt 0:02:36]} 43. Qxa8+ {[%emt 0:00:25]} Kh7 {[%emt 0:00:22]} 44. Qb8 {[%emt 0:04:03]} e5 {[%emt 0:02:06]} 45. Qxb3 {[%emt 0:00:34]} e4 {[%emt 0:03:22]} 46. Nf4 {[%emt 0:01:52]} d3 {[%emt 0:01:00]} 47. Qd1 {[%emt 0:04:58]} Bh6 {[%emt 0:07:46]} 48. Nxd3 {[%emt 0:01:51]} exd3 {[%emt 0:01:20]} 49. Qxd3+ {[%emt 0:00:05]} Kg8 {[%emt 0:01:30]} 50. Qd8+ {[%emt 0:02:19]} Bf8 {[%emt 0:06:16]} 51. Qg5+ {[%emt 0:01:44]} Kh7 {[%emt 0:01:33]} 52. c5 {[%emt 0:00:33]} Qf3 {[%emt 0:02:14]} 53. c6 {[%emt 0:01:51]} Qxc6 {[%emt 0:01:01]} 54. Qxh5+ {[%emt 0:00:02]} Kg8 {[%emt 0:00:19]} 55. Qf5 {[%emt 0:00:35]} Kg7 {[%emt 0:02:18]} 56. Kh2 {[%emt 0:00:42]} Qf6 {[%emt 0:00:12]} 57. Qg4+ {[%emt 0:00:29]} Qg6 {[%emt 0:02:11]} 58. Qe2 {[%emt 0:02:36]} Qf5 {[%emt 0:01:58]} 59. Kg2 {[%emt 0:00:55]} Qd5+ {[%emt 0:00:04]} 60. Kh3 {[%emt 0:00:21]} Qf5+ {[%emt 0:00:12]} 61. g4 {[%emt 0:00:22]} Qf4 {[%emt 0:00:12]} 62. Qb2+ {[%emt 0:00:28]} Kg8 {[%emt 0:00:20]} 63. Qb3+ {[%emt 0:00:06]} Kg7 {[%emt 0:00:21]} 64. Qc3+ {[%emt 0:00:04]} Kh7 {[%emt 0:00:50]} 65. Qd3+ {[%emt 0:00:54]} Kg7 {[%emt 0:00:04]} 66. Qg3 {[%emt 0:00:42]} Qxg3+ {[%emt 0:02:07]} 67. Kxg3 {[%emt 0:00:07]} Bb4 {[%emt 0:00:03]} 68. Kf4 {[%emt 0:01:21]} Be1 {[%emt 0:00:06]} 69. Ke3 {[%emt 0:00:02]} Kg6 {[%emt 0:01:47]} 70. Ke2 {[%emt 0:00:04]} Ba5 {[%emt 0:00:02]} 71. f4 {[%emt 0:00:08]} Bd8 {[%emt 0:00:08]} 72. h5+ {[%emt 0:00:01]} Kh6 {[%emt 0:00:07]} 73. Kf3 {[%emt 0:00:01]} Ba5 {[%emt 0:00:05]} 74. Ke4 {[%emt 0:01:20]} Bd2 {[%emt 0:00:07]} 75. Kf5 {[%emt 0:01:27]} Bc1 {[%emt 0:00:16]} 76. Ke5 {[%emt 0:00:19]} Bd2 {[%emt 0:00:07]} 77. f5 {[%emt 0:01:10]} Kg5 {[%emt 0:00:15]} 78. Ke6 {[%emt 0:00:25]} Kxg4 {[%emt 0:00:06]} 79. h6 {[%emt 0:00:02]} Bxh6 {[%emt 0:00:06]} 80. f6 {[%emt 0:00:01]} Kg5 {[%emt 0:00:06]} 81. f7 {[%emt 0:00:02]} Bf8 {[%emt 0:00:07]} 82. Kd5 {[%emt 0:00:03]} Kf6 {[%emt 0:00:04]} 83. Ke4 {[%emt 0:00:04]} Kxf7 {[%emt 0:07:01]} 1/2-1/2

[Event "3rd Sunway Formentera-A 2024"]
[Site "Formentera"]
[Date "2024.04.11"]
[Round "3.5"]
[White "Colbow, Collin"]
[Black "Ivanchuk, Vasyl"]
[Result "0-1"]
[ECO "C55"]
[WhiteElo "2376"]
[BlackElo "2611"]
[Annotator "TA"]
[PlyCount "84"]
[EventDate "2024.04.03"]
[EventType "swiss"]
[EventCountry "ESP"]
[SourceTitle "playchess.com"]
[Source "ChessBase"]
[SourceQuality "1"]
[TimeControl "40/5400+30:1800+30"]

{[%evp 10,84,34,30,43,36,45,34,31,27,33,-8,0,0,-7,-20,-20,-18,0,-14,-13,-25,-11,-48,-35,-40,-41,-35,-43,-36,-14,-35,-20,-17,-13,-4,-16,-13,-11,-8,-25,-17,0,0,0,-25,-25,-64,-52,-70,-77,-85,-42,-342,-201,-339,-347,-384,-384,-400,-397,-464,-468,-583,-579,-599,-587,-615,-616,-735,-723,-820,-796,-811,-814,-817,-792]} 1. e4 {[%emt 0:00:03]} e5 {[%emt 0:00:05]} 2. Nf3 {[%emt 0:00:08]} Nc6 {[%emt 0:00:05]} 3. Bc4 {[%emt 0:00:21]} Nf6 {[%emt 0:00:51]} 4. d3 {[%emt 0:00:10]} h6 {[%emt 0:00:05]} 5. O-O {[%emt 0:02:39]} d6 {[%emt 0:00:06]} 6. c3 {[%emt 0:00:25]} Be7 {[%emt 0:01:29]} 7. a4 {[%emt 0:01:19]} a5 {[%emt 0:00:43]} 8. Nbd2 {[%emt 0:04:24][%cal Bb1d2,Bd2f1,Bf1e3][%mdl 32]} O-O {[%emt 0:01:17] White is slightly better.} 9. Re1 {[%emt 0:03:26]} Be6 {[%emt 0:01:38]} 10. Nf1 {[%emt 0:15:59]} Bxc4 {[%emt 0:02:31]} 11. dxc4 {[%emt 0:00:07]} Re8 {[%emt 0:00:06]} 12. Qd3 {[%emt 0:01:50]} Bf8 {[%emt 0:01:48]} 13. Ne3 {[%emt 0:02:39]} Nb8 {[%emt 0:04:41][%cal Bc6b8,Bb8a6,Ba6c5][%mdl 32]} 14. h3 {[%emt 0:12:41]} Na6 {[%emt 0:04:34]} 15. Qc2 {[%emt 0:02:31]} Nc5 {[%emt 0:03:24]} 16. Ng4 {[%emt 0:05:37]} Nxg4 {[%emt 0:15:27]} 17. hxg4 {[%emt 0:00:07]} Qd7 {[%emt 0:00:03]} 18. Nh2 {[%emt 0:04:29]} Qe6 {[%emt 0:25:22]} 19. b3 {[%emt 0:08:39]} c6 {[%emt 0:00:08]} 20. Ba3 {[%emt 0:02:58]} d5 {[%emt 0:11:34]} 21. cxd5 {[%emt 0:00:42]} (21. exd5 {with more complications.} cxd5 22. cxd5 Qxd5 23. Bxc5 Bxc5 24. Rad1) 21... cxd5 {[%emt 0:00:01]} 22. Bxc5 {[%emt 0:01:52]} Bxc5 {[%emt 0:00:29]} 23. exd5 {[%emt 0:05:11] White is weak on the dark squares} Qxd5 {[%emt 0:00:03]} 24. Rad1 {[%emt 0:00:15] Prevents e4.} Qe6 {[%emt 0:01:34]} 25. Re4 {[%emt 0:00:41]} Red8 {[%emt 0:04:55]} 26. Nf3 {[%emt 0:03:59]} f6 {[%emt 0:00:16]} 27. Rxd8+ {[%emt 0:09:35]} Rxd8 {[%emt 0:00:01]} 28. g3 {[%emt 0:01:30] [#]} h5 $1 {[%emt 0:10:21]} 29. Nh2 {[%emt 0:04:01]} (29. gxh5 $2 {loses.} Qh3 30. Qe2 Qxg3+ (30... Qxh5 $2 {is the wrong capture.} 31. Qc4+ Qf7 32. Qxc5 $18) 31. Kf1 Qh3+ 32. Kg1 Qxh5 $17) 29... hxg4 {[%emt 0:07:00] Black has more active pieces.} 30. Nxg4 {[%emt 0:00:09]} b6 {[%emt 0:00:02]} 31. c4 $2 {[%emt 0:05:52][%mdl 8192] This costs White the game.} (31. b4 $15 axb4 32. cxb4) 31... Qd6 {[%emt 0:02:30]} (31... Qd7 $142 {Threatens to win with ...f5.} 32. Kg2 f5 33. Rxe5 (33. Nxe5 $2 {too greedy.} Qb7 $19) 33... fxg4) 32. Ne3 {[%emt 0:01:32]} (32. Re2 $142) 32... Qd3 $19 {[%emt 0:00:46]} 33. Kg2 {[%emt 0:00:36]} Qxc2 {[%emt 0:00:56]} 34. Nxc2 {[%emt 0:00:03][%mdl 4096] Endgame. KRB-KRN} Rd3 {[%emt 0:00:01]} 35. Ne3 {[%emt 0:00:57]} Rxb3 {[%emt 0:00:17] Black is clearly winning.} 36. Nd5 {[%emt 0:00:24]} Rb2 {[%emt 0:00:39]} 37. Kh3 {[%emt 0:00:37]} Rxf2 {[%emt 0:00:10]} 38. Re1 {[%emt 0:00:18]} Rc2 {[%emt 0:01:21]} 39. Re4 {[%emt 0:00:07]} Ra2 {[%emt 0:00:42]} 40. g4 {[%emt 0:00:00]} Ra3+ {[%emt 0:00:00]} 41. Kg2 {[%emt 0:01:57]} Rxa4 {[%emt 0:04:02]} 42. g5 {[%emt 0:00:03]} Kf7 {[%emt 0:00:30] Weighted Error Value: White=0.39/Black=0.10 (very precise) .  Loses game:     	White=1     	---        Mistake:       	White=1     	Black=1      Inaccurate:     	White=3     	Black=1      OK:         	White=10    	Black=16     Best:        	---       	Black=2} 0-1

[Event "3rd Sunway Formentera-A 2024"]
[Site "Formentera"]
[Date "2024.04.11"]
[Round "3.6"]
[White "Dragnev, Valentin"]
[Black "Tokhirjonova, Gulrukhbegim"]
[Result "1-0"]
[ECO "C54"]
[WhiteElo "2571"]
[BlackElo "2357"]
[Annotator "TA"]
[PlyCount "99"]
[EventDate "2024.04.03"]
[EventType "swiss"]
[EventCountry "ESP"]
[SourceTitle "playchess.com"]
[Source "ChessBase"]
[SourceQuality "1"]
[TimeControl "40/5400+30:1800+30"]

{[%evp 11,99,19,11,26,28,27,27,26,25,7,66,62,82,97,134,93,133,74,174,195,186,181,235,245,276,264,289,193,199,179,188,194,165,118,113,120,265,231,370,364,341,272,738,706,708,741,791,818,841,809,796,809,789,593,545,513,760,785,722,751,763,735,800,785,1114,1116,1018,794,29984,29985,29985,29986,29986,29987,29987,29986,29993,29962,29962,29971,29969,29951,29974,29975,29978,29976,29977,29977,29976,29976]} 1. e4 {[%emt 0:00:02]} e5 {[%emt 0:10:18]} 2. Nf3 {[%emt 0:00:11]} Nc6 {[%emt 0:00:18]} 3. Bc4 {[%emt 0:00:07]} Bc5 {[%emt 0:00:07]} 4. O-O {[%emt 0:00:10]} Nf6 {[%emt 0:00:18]} 5. d3 {[%emt 0:00:04]} d6 {[%emt 0:00:54]} 6. c3 {[%emt 0:00:13]} a6 {[%emt 0:00:07]} 7. a4 {[%emt 0:00:37] C54: Giuoco Piano: 4 c3 Nf6, main lines with 5 d4 and 5 d3.} Ba7 {[%emt 0:00:43]} 8. Nbd2 {[%emt 0:00:55]} h6 {[%emt 0:00:15]} 9. Re1 {[%emt 0:00:11]} g5 {[%emt 0:06:18]} 10. Nf1 {[%emt 0:00:54]} Ng4 $146 {[%emt 0:04:20]} (10... g4 $11 11. N3d2 h5) ({Predecessor:} 10... g4 11. Nh4 Nxe4 12. dxe4 Qxh4 13. Be3 Be6 14. Bxe6 fxe6 15. Qb3 Kd7 16. Rad1 Rhf8 {0-1 Nihal,S (2692)-Praggnanandhaa,R (2741) Che Thiruvananthapuram m blitz 2023 (3)}) 11. Re2 $14 {[%emt 0:10:37]} Rg8 {[%emt 0:09:03]} 12. b4 {[%emt 0:06:40]} Qf6 {[%emt 0:03:03]} 13. Raa2 {[%emt 0:14:48] Black must now prevent h3.} Qg6 {[%emt 0:15:41]} 14. a5 {[%emt 0:04:36]} (14. d4 $142) 14... Nd8 {[%emt 0:07:20]} (14... Be6 $16) 15. d4 $18 {[%emt 0:10:46][%cal Bd3d4,Bd4d5][%mdl 32]} Be6 {[%emt 0:09:45]} 16. Qb3 {[%emt 0:04:27]} c6 {[%emt 0:08:58] [#]} (16... Nf6 {was called for.}) 17. Ng3 $1 {[%emt 0:01:22]} h5 {[%emt 0:07:40][%cal Bh6h5,Bh5h4][%mdl 32]} 18. Rad2 {[%emt 0:23:40]} (18. Nxg5 h4 19. Nf5 Bxf5 20. exf5 Qxf5 $18) (18. Bxg5 Bxc4 19. Qxc4 Ne6 $18) 18... Bb8 {[%emt 0:04:43]} 19. d5 {[%emt 0:05:27]} Bd7 {[%emt 0:00:18]} 20. Qd1 {[%emt 0:04:45]} Nf6 {[%emt 0:00:29] [#]} 21. dxc6 $1 {[%emt 0:00:37]} Nxc6 {[%emt 0:02:13]} 22. Bd3 {[%emt 0:03:05]} (22. Rd3 $18) 22... h4 $16 {[%emt 0:02:29]} 23. Nf5 {[%emt 0:00:11] aiming for Bc2.} Nh5 {[%emt 0:00:09]} (23... Qh7 $16) 24. b5 $18 {[%emt 0:02:25]} axb5 {[%emt 0:01:10]} (24... Nxa5 {might work better.} 25. Ra2 axb5) 25. Bxb5 {[%emt 0:00:01][%cal Rf5d6]} Nf4 {[%emt 0:00:11]} 26. Nxd6+ {[%emt 0:01:31]} Bxd6 $2 {[%emt 0:00:55]} (26... Ke7) 27. Rxd6 {[%emt 0:00:01]} Nxe2+ {[%emt 0:03:13]} 28. Bxe2 {[%emt 0:00:02]} Be6 {[%emt 0:01:08]} 29. a6 {[%emt 0:00:28]} bxa6 {[%emt 0:02:02]} 30. Rxc6 {[%emt 0:00:16]} Qxe4 {[%emt 0:00:10]} 31. Rd6 {[%emt 0:02:06]} h3 {[%emt 0:00:10]} 32. c4 {[%emt 0:03:00]} (32. Bxg5 $2 {too greedy.} Rxg5 33. g3 Bg4 $19) (32. Rxa6 Rxa6 33. Bxa6 f6 $16) 32... g4 {[%emt 0:00:55]} 33. Ne1 {[%emt 0:00:26]} Ke7 {[%emt 0:00:56]} 34. Bd3 {[%emt 0:01:02]} Qb7 {[%emt 0:00:19]} 35. Ba3 {[%emt 0:00:01] Threatens to win with Rb6+.} Kf6 {[%emt 0:00:09]} 36. Qc1 {[%emt 0:00:34]} Rh8 {[%emt 0:00:13] Inhibits Qh6+.} 37. Bb2 {[%emt 0:00:33][%cal Ba3b2,Bb2e5,Be5d6][%mdl 32] Strongly threatening Qf4+.} Rh5 {[%emt 0:01:10]} 38. Qf4+ {[%emt 0:01:04]} Ke7 {[%emt 0:00:31][%cal Bf6e7,Be7e8,Be8d8,Bd8d7,Bd7d6][%mdl 32]} 39. Bxe5 {[%emt 0:00:04]} Qb4 {[%emt 0:00:44]} 40. Qf6+ {[%emt 0:00:00]} Ke8 {[%emt 0:00:00]} 41. Rxe6+ {[%emt 0:05:56]} fxe6 {[%emt 0:04:07]} 42. Qxe6+ {[%emt 0:02:13]} Kd8 {[%emt 0:01:20]} 43. Bd6 {[%emt 0:00:41]} (43. Qxg4 $2 {loses.} Qxe1+ (43... Rxe5 $2 44. Qd4+ Kc7 45. Qxe5+ $18) 44. Bf1 Qxe5 $19 (44... Rxe5 45. Qg8+ Ke7 46. Qxa8 $15)) 43... Qb7 {[%emt 0:03:43]} 44. Qg8+ {[%emt 0:00:25]} Kd7 {[%emt 0:00:19]} 45. Qf7+ {[%emt 0:00:04]} Kxd6 {[%emt 0:00:42]} 46. Qxb7 {[%emt 0:00:11]} Re8 {[%emt 0:00:04]} 47. Qxa6+ {[%emt 0:00:29]} Kd7 {[%emt 0:00:11]} 48. Qb7+ {[%emt 0:00:27]} Kd6 {[%emt 0:00:29]} 49. Qb4+ {[%emt 0:00:06]} Kc7 {[%emt 0:00:37]} 50. Bg6 {[%emt 0:00:22][%csl LRe8,LRh5]} 1-0